Cogmind - Beta 17 @@@ ROGUE MODE // 2026.08.13 @ 15:26:05 Player: Sadani Result: Destroyed by Combat Programmer with EMDS Performance ------------- Evolutions (8) 4000 Regions Visited (24) 4800 Robots Destroyed (361) 1805 Value Destroyed (13545) 13545 Prototype IDs (67) 1340 Alien Tech Used (5) 1000 Bonus (10305) 10305 TOTAL SCORE: 36795 Bonus ------- High Alert Combat Kills 929 Follower Combat Kills 1403 Registered with UFD 300 Met Optimus in HQ 500 Met Zhirov 300 MAIN.C Attacked Warlord 500 Found Hidden Lab 3000 Used Core Reset Matrix 3000 Pursued by Intercept 500 Friendly Fire -127 Cogmind --------- Core Integrity 0/1450 Matter 217/300 Energy 100/100 System Corruption 34% Temperature Cool (0) Movement Hovering (70) Location -2/Research Parts ------- > --- POWER (3) -------- (None) > --- PROPULSION (7) --- Improved Gyrokinetic Inverter > --- UTILITY (9) ------ (None) > --- WEAPON (5) ------- (None) > --- INVENTORY (5) ---- Terrain Scanner Peak State ------------ > --- POWER ------------ Hybrid Antimatter Reactor Hybrid Antimatter Reactor Light Quantum Reactor > --- PROPULSION ------- Antigrav Array Combat Linear Gravjet Combat Linear Gravjet Combat Linear Gravjet Combat Linear Gravjet Combat Linear Gravjet > --- UTILITY ---------- Advanced Cryofiber Web Experimental Heat Sink Experimental Signal Interpreter Medium Regenerative Plating Experimental Hacking Suite Deep Network Scanner Advanced System Shield Experimental System Shield Trap Extractor > --- WEAPON ----------- Hypervelocity EM Gauss Rifle Compact HERF Cannon Enhanced Force Lance Enhanced Force Lance Enhanced Force Lance > --- INVENTORY -------- Transdimensional Reconstructor Core Regenerator Vortex Rail [Rating: 190] Favorites ----------- Power Heavy Ion Engine Engine Heavy Ion Engine Power Core Neutrino Core Reactor Light Antimatter Reactor Propulsion Armored Wheel Treads Armored Treads Leg Myomer Leg Wheel Armored Wheel Hover Unit Combat Linear Gravjet Flight Unit VTOL Module Utility Humpback Device Advanced Terrain Scanner Storage Humpback Processor Surveybot 17 Chip Hackware Improved Hacking Suite Protection Improved Medium Armor Plating Weapon Gatling Laser Energy Gun Gatling Laser Energy Cannon Heavy Plasma Cannon Ballistic Gun Enhanced Autogun Ballistic Cannon Enhanced Gauss Cannon Launcher Thermoblaster Special Weapon Guided Remote Datajack Impact Weapon Maul Slashing Weapon Vibroblade Piercing Weapon Enhanced Force Lance Special Melee Weapon Improved Datajack Build | -11 -10 -9 -9 -9 -8 -8 -8 -8 -8 -6 -5 -5 -5 -5 -4 -4 -4 -4 -4 -3 -3 -3 -3 -2 ------- Run | Yrd Mat Mat Min Exi Min Mat Sto Rec Scr Fac Fac Upp Upp War Pro Fac Upp Upp Zhi Pro Res Arm Lab Res Slots Evolved 16 | . . 2 . . . 2 . . . 4 2 . . . . 2 . . . . 2 . . 2 Power 2 | . . . . . . . . . . . 1 . . . . . . . . . 1 . . . Propulsion 5 | . . 1 . . . . . . . 1 1 . . . . 1 . . . . . . . 1 Utility 7 | . . . . . . 2 . . . 2 . . . . . 1 . . . . 1 . . 1 Weapon 2 | . . 1 . . . . . . . 1 . . . . . . . . . . . . . . Parts Attached 343 | 4 8 29 . 3 . 17 12 2 5 39 30 8 2 12 . 21 4 10 9 12 36 30 13 37 Power 33 | . 2 1 . . . . 1 . . 3 2 1 . 1 . 3 . 2 1 . 7 3 . 6 Engine 8 | . 2 1 . . . . 1 . . 3 . . . . . . . . . . . . . 1 Core 4 | . . . . . . . . . . . 2 1 . 1 . . . . . . . . . . Reactor 21 | . . . . . . . . . . . . . . . . 3 . 2 1 . 7 3 . 5 Propulsion 83 | 2 1 11 . 1 . 4 3 . 2 6 9 3 . 6 . 5 . 3 2 3 9 6 1 6 Treads 27 | 2 1 8 . . . 2 . . . 5 1 1 . . . . . 1 . 1 5 . . . Leg 19 | . . . . . . . . . . . 1 . . 6 . 5 . 2 1 2 2 . . . Wheel 12 | . . 1 . 1 . 2 1 . 2 1 1 . . . . . . . . . 1 . . 2 Hover 20 | . . . . . . . 1 . . . 4 2 . . . . . . 1 . 1 6 1 4 Flight 5 | . . 2 . . . . 1 . . . 2 . . . . . . . . . . . . . Utility 119 | . 2 5 . 1 . 8 2 2 2 21 9 3 2 1 . 7 . 4 3 3 13 10 8 13 Device 59 | . 1 1 . . . 2 1 . 2 10 5 1 2 1 . 4 . 3 . 2 9 4 3 8 Storage 10 | . 1 1 . 1 . . . . . . 2 . . . . . . . 2 . . . 1 2 Processor 15 | . . . . . . 2 1 . . 3 . 1 . . . 2 . . . . 1 2 . 3 Hackware 15 | . . 1 . . . 2 . 1 . 3 1 . . . . . . . . . 1 3 3 . Protection 20 | . . 2 . . . 2 . 1 . 5 1 1 . . . 1 . 1 1 1 2 1 1 . Artifact . | . . . . . . . . . . . . . . . . . . . . . . . . . Weapon 108 | 2 3 12 . 1 . 5 6 . 1 9 10 1 . 4 . 6 4 1 3 6 7 11 4 12 Energy Gun 30 | . . . . . . 2 3 . . 2 2 . . . . 1 4 1 3 1 4 . 2 5 Energy Cannon 10 | . 1 2 . . . 1 . . . 1 1 . . . . . . . . . . 1 1 2 Ballistic Gun 37 | 2 2 9 . . . 1 1 . 1 1 3 . . 3 . 5 . . . 4 . . . 5 Ballistic Cannon 16 | . . . . . . . 1 . . 3 4 1 . 1 . . . . . . 2 4 . . Launcher 6 | . . 1 . . . 1 . . . 2 . . . . . . . . . 1 . 1 . . Special Weapon 1 | . . . . . . . . . . . . . . . . . . . . . . . 1 . Impact Weapon 1 | . . . . 1 . . . . . . . . . . . . . . . . . . . . Slashing Weapon 3 | . . . . . . . . . . . . . . . . . . . . . 1 2 . . Piercing Weapon 3 | . . . . . . . . . . . . . . . . . . . . . . 3 . . Special Melee Weapon 1 | . . . . . . . 1 . . . . . . . . . . . . . . . . . Unidentified Prototypes 39 | . . 4 . . . . 5 . . 1 1 . . . 1 2 . . 8 . . 2 13 2 Corrupted Parts 6 | . . . . . . . . . . . . . . . . . . . . . 1 . . 5 System Corruption 24 | . . . . . . . . . . . . . . . . . . . . . 8 . . 16 Parts Lost 90 | . . . . . . 2 1 1 . 7 12 2 . 1 . 2 . 1 . 2 12 5 2 40 Power 11 | . . . . . . . . . . . 1 . . 1 . 1 . . . . 1 1 1 5 Propulsion 19 | . . . . . . 1 . . . 1 5 . . . . 1 . . . . 2 . . 9 Utility 30 | . . . . . . . . 1 . 3 2 1 . . . . . 1 . 1 5 4 1 11 Weapon 30 | . . . . . . 1 1 . . 3 4 1 . . . . . . . 1 4 . . 15 Highest Loss Streak 26 | . . . . . . 1 1 1 . 5 8 2 . 1 . 1 . 1 . 2 9 3 2 26 To Critical Strikes 1 | . . . . . . . . . . . . . . . . . . . . . . . . 1 Average Backups 21 | 1 11 18 20 19 29 34 32 32 33 29 9 7 11 12 13 12 12 12 12 13 13 13 3 5 Power . | . . . 1 . 1 2 1 1 1 . . . . . . . 1 . . . . . . . Propulsion 4 | . 2 6 6 5 10 8 8 7 7 4 . 2 2 . 1 1 2 1 . . . . . . Utility 9 | . 3 5 7 6 10 14 14 14 16 16 4 3 6 7 6 6 6 5 5 6 5 4 1 1 Weapon 5 | . 4 6 6 5 6 9 7 9 8 6 3 1 1 5 6 4 3 4 5 5 5 7 1 1 Tool/Special . | . . . . . . . . . . . . . . . . . . . . . . . . . Unused Backups 86 | . 3 4 . . . 23 6 1 9 13 6 . . 6 . 2 . . 1 1 2 6 1 2 Power 5 | . . . . . . 3 1 1 . . . . . . . . . . . . . . . . Propulsion 13 | . . 1 . . . 9 . . . . 1 . . . . . . . . . . . . 2 Utility 43 | . 1 3 . . . 8 2 . 7 11 3 . . 3 . 2 . . . . . 3 . . Weapon 21 | . 2 . . . . 1 3 . 2 2 1 . . 3 . . . . . 1 2 3 1 . Tool/Special 4 | . . . . . . 2 . . . . 1 . . . . . . . 1 . . . . . Average Slot Usage (%) 91 | . 96 99 100 97 88 88 88 89 87 86 90 97 100 99 99 98 100 96 78 94 90 93 88 80 Engine 5 | . 13 10 11 11 11 9 9 9 9 5 3 . . 4 . . . . . . . . . . Core 1 | . . . . . . . . . . . 5 11 11 5 11 2 . . . . . . . . Reactor 2 | . . . . . . . . . . . . . . . . 6 10 10 10 10 12 12 10 9 Treads 10 | . 28 32 33 29 11 9 8 9 4 9 14 3 5 4 . . . 3 5 5 14 7 . . Leg 3 | . . . . . . . . . . . . 1 . 1 28 29 30 22 19 20 6 . . . Wheel 9 | . . . . 3 22 17 18 18 22 16 9 5 5 4 . . . . . . . . . . Hover 2 | . . . . . . . . . . . 1 13 17 15 . . . . . . . 17 24 21 Device 11 | . 10 3 . . . 6 7 7 10 11 10 14 13 17 16 15 20 21 21 19 26 16 11 9 Storage 7 | . 13 11 11 11 11 9 9 9 9 5 4 5 5 5 5 5 5 5 5 5 4 3 1 . Processor 2 | . . . . . . 2 . . . 2 5 9 11 8 5 12 5 5 5 5 3 1 6 4 Hackware 2 | . . 4 11 8 . 3 2 1 . 3 5 . . . . . . . . . . 7 9 13 Protection 3 | . . 3 . . . 4 7 8 5 2 . 3 3 1 5 1 5 3 2 4 . 1 1 2 Energy Gun 9 | . . . . . . 15 16 18 18 12 1 . . . . . 14 24 8 16 8 6 4 4 Ballistic Gun 10 | . 21 28 33 32 30 9 7 9 9 7 10 . . 1 16 18 10 . . 6 4 . . 4 Ballistic Cannon 3 | . . . . . . . 1 . . 4 6 19 23 21 5 6 . . . . 3 10 . . Peak Build Rating 190 | 4 8 22 20 21 22 38 39 40 44 66 90 91 91 95 99 134 137 146 145 150 162 174 173 190 Average Rating 68 | 2 7 16 20 19 21 34 36 38 40 60 77 86 89 86 98 124 134 141 119 141 146 159 162 156 On Entrance 76 | . 4 8 20 20 21 22 38 38 40 43 61 57 90 89 95 99 127 135 146 144 137 152 155 173 Avg Prop Armor Cover (%) 8 | 30 29 8 . 7 7 8 7 7 8 7 15 8 7 9 . 5 5 9 13 9 7 3 . 15 Naked Turns . | . . . . . . . . . . . . . . . . . . . . . . . . . Heaviest Build 249 | 2 31 60 57 218 218 227 229 227 225 249 89 94 94 88 86 96 85 93 89 95 125 127 77 89 Greatest Support 177 | 3 40 60 60 60 24 28 28 22 36 80 67 31 31 93 93 138 118 98 98 100 177 150 84 98 Greatest Overweight (x) 11 | . . 4 . 9 9 9 10 10 10 10 11 11 3 10 . . . 1 . 1 1 1 1 1 Average Overweight (x) 3 | . . . . 1 9 7 8 9 7 5 3 6 2 4 . . . . . . . . . . Largest Inventory Capacity 35 | 5 15 20 20 35 35 35 35 35 35 35 15 15 15 15 15 15 15 15 15 15 15 15 5 10 Average Capacity 23 | 5 14 19 20 22 35 35 34 35 35 31 11 15 15 15 15 15 15 15 15 15 15 13 5 6 Most Carried 35 | 3 15 20 20 21 32 35 35 35 35 35 15 12 15 15 15 15 15 15 15 15 15 15 5 10 Average Carried 22 | 1 11 18 20 19 29 34 33 33 34 31 11 8 12 14 15 14 14 14 14 14 14 13 4 5 Final Capacity 35 | 5 15 20 20 35 35 35 35 35 35 5 15 15 15 15 15 15 15 15 15 15 15 5 5 5 Final Carried 35 | 3 15 20 20 21 32 35 33 35 35 5 13 11 15 15 15 15 15 14 15 15 15 4 5 1 Scrap Suit Usage (%) 19 | . . . . . . . . . 22 87 92 . . . . . . . . . . . . . Parts Cannibalized 38 | . . . . . . . . . 1 26 11 . . . . . . . . . . . . . Class Distribution -------------------- 22% | Hauler-Tank 18% | Scavenger-Skirmisher 11% | Hauler-Gunner 7% | Hauler-Skirmisher 6% | Scavenger-Gunner 5% | Scavenger-Tank 5% | Mutant 3% | Scavenger-Scrapper Dominant Class ---------------- Mutant | -10/Materials Scavenger-Gunner | -9/Materials Scavenger-Gunner | -9/Mines Scavenger-Gunner | -9/Exiles Hauler-Gunner | -8/Mines Hauler-Tank | -8/Materials Hauler-Tank | -8/Storage Hauler-Tank | -8/Recycling Hauler-Tank | -8/Scraptown Hauler-Skirmisher | -6/Factory Scavenger-Scrapper | -5/Factory Scavenger-Skirmisher | -5/Upper Caves Scavenger-Skirmisher | -5/Upper Caves Commander-Skirmisher | -5/Warlord Scavenger-Skirmisher | -4/Proximity Caves Scavenger-Skirmisher | -4/Factory Scavenger-Skirmisher | -4/Upper Caves Scavenger-Skirmisher | -4/Upper Caves Scavenger-Mutant | -4/Zhirov Scavenger-Tank | -3/Proximity Caves Scavenger-Tank | -3/Research Hacker-Gunner | -3/Armory Wizard-Mutant | -3/Lab Wizard-Mutant | -2/Research Resources | -11 -10 -9 -9 -9 -8 -8 -8 -8 -8 -6 -5 -5 -5 -5 -4 -4 -4 -4 -4 -3 -3 -3 -3 -2 ----------- Run | Yrd Mat Mat Min Exi Min Mat Sto Rec Scr Fac Fac Upp Upp War Pro Fac Upp Upp Zhi Pro Res Arm Lab Res Matter Collected 12904 | 169 233 1062 . . 212 358 635 106 . 2206 1983 322 246 359 55 831 75 160 . 601 1289 1117 75 810 Remotely 4243 | . . . . . . . . . . 909 1221 120 171 359 . 811 . . . . 652 . . . Salvage Created 16135 | . 494 1561 . . 597 1094 1323 297 . 2598 2057 244 57 90 58 1135 110 152 . 886 1733 504 75 1070 Parts 761 | . 42 91 . . 27 61 58 13 . 89 84 14 4 7 4 52 8 . . 28 101 21 9 48 Haulers Intercepted 10 | . 2 4 . . . 1 2 . . . . . . . . . . . . . 1 . . . Recyclers Shooed 22 | . 1 1 . . 3 1 . 1 . 6 6 . . . . 1 . . . . 2 . . . Parts Field Recycled . | . . . . . . . . . . . . . . . . . . . . . . . . . Retrieved Matter . | . . . . . . . . . . . . . . . . . . . . . . . . . Parts Self-Destructed 84 | . . . . . . . . . . . . 6 3 . 7 . 8 . . 60 . . . . Prevented . | . . . . . . . . . . . . . . . . . . . . . . . . . Parts Restored . | . . . . . . . . . . . . . . . . . . . . . . . . . Kills | -11 -10 -9 -9 -9 -8 -8 -8 -8 -8 -6 -5 -5 -5 -5 -4 -4 -4 -4 -4 -3 -3 -3 -3 -2 ------- Run | Yrd Mat Mat Min Exi Min Mat Sto Rec Scr Fac Fac Upp Upp War Pro Fac Upp Upp Zhi Pro Res Arm Lab Res Combat Hostiles Destroyed 251 | . 12 29 . . 3 27 19 4 . 44 31 10 3 . 2 12 2 . . 12 22 12 1 6 Melee 7 | . . . . . . . . . . . 1 . . . . . . . . . . 4 1 1 Guns 162 | . 12 27 . . 2 24 19 4 . 24 19 . . . 2 12 2 . . 8 4 . . 3 Cannons 55 | . . 2 . . 1 . . . . 18 11 3 3 . . . . . . . 9 7 . 1 AOE 18 | . . . . . . 3 . . . . . 7 . . . . . . . 1 6 1 . . Classes Destroyed 21 | . 5 4 . . 2 1 1 . . 2 . 1 . . . . . . . 1 3 1 . . Worker 33 | . 2 2 . . 2 1 2 . . 16 3 . . . . 2 . . . . 2 . . 1 Builder 9 | . . . . . 1 2 . . . 1 . . . . . . . . . . 3 . . 2 Tunneler 2 | . . . . . . . . . . . . . . . . . . . . . 2 . . . Hauler 10 | . 2 4 . . . 1 2 . . . . . . . . . . . . . 1 . . . Recycler 28 | . . 2 . . 6 1 3 1 . 6 3 . . . . 1 . . . . 2 . . 3 Mechanic 2 | . . . . . . . 1 . . . . . . . . . . . . . . 1 . . Operator 5 | . . 2 . . . . . . . 1 . . . . . 1 . . . . 1 . . . Watcher 18 | . 2 5 . . . 4 1 . . 1 1 . . . . . . . . . 2 . . 2 Swarmer 60 | . 6 7 . . . 14 . . . 8 7 5 3 . 2 . . . . 4 4 . . . Saboteur 1 | . . . . . . . . . . . . . . . . . . . . . . 1 . . Grunt 89 | . 6 16 . . 2 6 7 . . 23 12 2 . . . 5 . . . 7 3 . . . Brawler 4 | . . 1 . . . 1 . . . . . . . . . . . . . . . 2 . . Duelist 1 | . . . . . 1 . . . . . . . . . . . . . . . . . . . Sentry 43 | . . 5 . . . 5 10 4 . 3 6 1 . 1 . 3 . . . 1 3 1 . . Specialist 1 | . . . . . . . . . . . . . . . . . . . . . 1 . . . Hunter 16 | . . . . . . 1 2 . . 2 . . . . . 4 . . . . . 5 . 2 Programmer 32 | . . . . . . . . . . 7 6 2 . . . . 2 . . . 9 4 . 2 Heavy 1 | . . . . . . . . . . . . . . . . . . . . . 1 . . . Behemoth 2 | . . . . . . . . . . 1 . . . . . . . . . . 1 . . . Tracker 2 | . . . . . . . . . . . . . . . . . . . . . . . . 2 Ranger 1 | . . . . . . . . . . . . . . . . . . . . 1 . . . . Packrat 2 | . . . . . . . . . . . . . . . . . . 2 . . . . . . Samaritan 1 | . . . . . . . . . . . . 1 . . . . . . . . . . . . Best Kill Streak 12 | . 6 5 . . 5 7 8 2 . 12 6 5 3 . 2 7 2 . . 5 9 4 1 2 Combat Bots Only 7 | . 6 4 . . 3 7 4 1 . 5 5 5 3 . 2 6 2 . . 5 5 4 1 2 Max Kills in Single Turn 3 | . 1 2 . . 2 2 2 1 . 2 2 3 1 1 2 1 1 1 . 2 2 1 1 1 Gunslinging 1 | . . 1 . . . 1 1 . . . . . . . 1 . . . . . . . . . Exploded 3 | . . . . . . 2 . . . . . 3 . . . . . . . 1 2 1 . . Melee 1 | . . . . . . . . . . . 1 . . . . . . . . . . 1 1 1 Uniques/NPCs Destroyed 1 | . . . . . . . . . . . . . . . . . . . . . . . 1 . A5 (-3/Lab) Combat | -11 -10 -9 -9 -9 -8 -8 -8 -8 -8 -6 -5 -5 -5 -5 -4 -4 -4 -4 -4 -3 -3 -3 -3 -2 -------- Run | Yrd Mat Mat Min Exi Min Mat Sto Rec Scr Fac Fac Upp Upp War Pro Fac Upp Upp Zhi Pro Res Arm Lab Res Hostile Shots Fired 1920 | . 44 125 . . 9 71 69 2 . 367 231 33 8 28 33 98 14 22 . 88 157 192 29 300 Missed 564 | . 14 31 . . 1 15 19 . . 110 59 11 6 9 13 35 5 9 . 21 37 75 9 85 Hits 1356 | . 30 94 . . 8 56 50 2 . 257 172 22 2 19 20 63 9 13 . 67 120 117 20 215 Melee 2 | . . . . . 1 . . . . . . . . . . . . . . . . 1 . . Projectile 1354 | . 30 94 . . 7 56 50 2 . 257 172 22 2 19 20 63 9 13 . 67 120 116 20 215 AOE 2 | . . . . . . . . . . . . . . . . . . . . . . 2 . . Critical Strikes 58 | . 2 3 . . 1 . 3 . . 9 6 . . . . 4 . . . 2 9 3 . 16 Actively Blocked 1 | . . . . . . . . . . 1 . . . . . . . . . . . . . . Part Disruptions 6 | . . . . . . . . . . . 1 . . . . . . . . . 2 1 . 2 Damage Taken 24094 | . 343 1136 . . 142 622 845 29 . 3920 3220 468 31 549 133 1239 193 214 . 1148 2933 1343 514 5072 Core 3531 | . 85 172 . . 30 73 77 . . 288 327 60 . 14 . 116 . 22 . 61 186 137 127 1756 Absorbed by Shields 1442 | . . . . . . . . . . . . . . 116 . . . . . 68 758 500 . . Reduced by Siege Mode 50 | . . . . . . . . . . . . . . . . . . . . 18 32 . . . Redirected to Shielding 138 | . . . . . . . . . . 138 . . . . . . . . . . . . . . Ignored by Resistances 363 | . . . . . . 24 . . . 24 . . . . . . . 28 . 180 107 . . . Regen/Repaired (Parts) 1546 | . . . . . . . 393 . 10 214 376 . . 359 . . . . . . . . . 194 Core Remaining (%) 69 | 100 66 . . . 49 . . . 72 66 . . . . 59 . . . . 82 . . 59 . Volleys Fired 897 | . 53 108 . . 17 50 48 8 . 161 126 18 6 10 4 35 2 6 . 38 93 31 1 82 Largest 5 | . 2 3 . . 3 3 3 3 . 4 4 2 2 3 3 4 4 3 . 5 4 4 1 5 Hottest 458 | . 80 114 . . 114 183 235 185 . 284 217 94 98 105 105 145 376 282 . 458 260 234 100 317 Shots Fired 2158 | . 104 284 . . 51 131 114 25 . 389 308 25 13 30 10 107 8 14 . 110 184 103 2 146 Gun 1581 | . 74 247 . . 44 122 100 25 . 252 194 . . 30 9 102 8 14 . 107 128 4 1 120 Cannon 550 | . 30 36 . . 7 7 14 . . 136 114 18 13 . 1 5 . . . . 45 97 1 26 Launcher 27 | . . 1 . . . 2 . . . 1 . 7 . . . . . . . 3 11 2 . . Special . | . . . . . . . . . . . . . . . . . . . . . . . . . Kinetic 1358 | . 74 247 . . 44 41 46 8 . 198 261 18 13 30 10 107 . . . 20 94 97 . 50 Thermal 621 | . 30 36 . . 7 88 68 17 . 183 47 . . . . . 8 14 . 90 27 1 1 4 Explosive 11 | . . 1 . . . . . . . 1 . 7 . . . . . . . . . 2 . . Electromagnetic 131 | . . . . . . 2 . . . 7 . . . . . . . . . . 35 2 1 84 Entropic 37 | . . . . . . . . . . . . . . . . . . . . . 28 1 . 8 Robot Hit Streak 25 | . 8 11 . . 12 11 14 10 . 25 11 11 2 15 3 12 2 3 . 14 20 5 . 4 Robot Miss Streak 8 | . 3 5 . . 1 5 3 3 . 8 6 2 2 2 2 3 2 1 . 4 6 5 . 7 Penetration Max 2 | . . . . . . . . . . 1 1 . . 1 1 1 . . . 1 2 . . 1 Secondary Targets 32 | . 3 5 . . . 8 2 . . 2 3 . . . 1 4 . . . 3 1 . . . Max Gunslinging Chain 1 | . 1 1 . . . 1 1 . . 1 1 . . . 1 1 . . . 1 1 . . . Shots Hit Robots 1351 | . 67 181 . . 30 86 78 18 . 279 172 14 5 26 5 63 5 5 . 57 118 59 15 68 Core Hits 801 | . 36 72 . . 19 66 76 12 . 223 74 19 3 10 4 37 4 3 . 27 50 30 4 32 Critical Kills 37 | . 1 1 . . . . . . . 1 10 1 . 1 1 14 . . . 5 2 . . . Critical Parts Destroyed 54 | . . 1 . . . . . . . 2 15 . 2 8 1 16 . . . 4 3 . . 2 Critical Strikes 125 | . 1 3 . . . . . . . 8 36 2 2 11 2 30 . . . 11 10 6 . 3 Burn 6 | . . . . . . . . . . . 4 . . . . . . . . 2 . . . . Destroy 95 | . 1 3 . . . . . . . 3 28 1 2 11 2 30 . . . 9 3 . . 2 Blast 21 | . . . . . . . . . . 5 4 1 . . . . . . . . 5 6 . . Impale 1 | . . . . . . . . . . . . . . . . . . . . . . . . 1 Detonate 2 | . . . . . . . . . . . . . . . . . . . . . 2 . . . Melee Attacks 72 | . . . . . . . . . . 1 . . . . . . . . . . 7 13 25 26 Impact . | . . . . . . . . . . . . . . . . . . . . . . . . . Slashing 26 | . . . . . . . . . . . . . . . . . . . . . 7 13 6 . Piercing 45 | . . . . . . . . . . . . . . . . . . . . . . . 19 26 Sneak Attacks 6 | . . . . . . . . . . 1 . . . . . . . . . . 2 1 . 2 Combat Hostiles . | . . . . . . . . . . . . . . . . . . . . . . . . . Follow-up Attacks 10 | . . . . . . . . . . . . . . . . . . . . . . . 7 3 Damage Inflicted 37523 | . 767 2830 . . 600 1964 1993 442 . 7369 3965 1187 154 296 51 1358 175 147 . 1515 6096 3311 950 2353 Guns 20688 | . 429 2155 . . 476 1889 1710 442 . 4961 2528 . . 296 51 892 175 147 . 1395 2263 109 . 770 Cannons 10323 | . 284 601 . . 124 . 217 . . 2382 1401 258 154 . . . . . . . 2293 1993 . 616 Explosions 3417 | . . . . . . 63 . . . 23 27 929 . . . 416 . . . 120 1077 653 . 109 Melee 2674 | . . . . . . . . . . . . . . . . . . . . . 335 556 950 833 Ramming 421 | . 54 74 . . . 12 66 . . 3 9 . . . . 50 . . . . 128 . . 25 Kinetic 17386 | . 429 2155 . . 476 297 537 90 . 3107 3331 258 154 296 51 892 . . . 185 2572 1993 . 563 Thermal 12219 | . 284 601 . . 124 1592 1390 352 . 4150 598 . . . . 416 175 147 . 1330 892 30 . 138 Explosive 2124 | . . . . . . . . . . 2 . 929 . . . . . . . . 540 653 . . Electromagnetic 1596 | . . . . . . 63 . . . 107 27 . . . . . . . . . 599 39 . 761 Impact . | . . . . . . . . . . . . . . . . . . . . . . . . . Slashing 1084 | . . . . . . . . . . . . . . . . . . . . . 335 556 193 . Piercing 1590 | . . . . . . . . . . . . . . . . . . . . . . . 757 833 Entropic 1103 | . . . . . . . . . . . . . . . . . . . . . 1030 40 . 33 Highest Corruption 34 | . 2 . . . . 1 1 2 2 2 6 10 10 10 . 2 2 2 2 2 26 27 27 34 Average Corruption 5 | . 1 . . . . 1 1 1 2 1 4 8 10 10 . 2 2 2 2 2 12 26 5 17 Corruption Purged . | . . . . . . . . . . . . . . . . . . . . . . . . . Corruption Blocked . | . . . . . . . . . . . . . . . . . . . . . . . . . Effects 277 | . 11 . . . . 1 14 17 1 4 17 35 22 2 . 3 6 9 2 10 36 44 4 39 Message Errors 56 | . 3 . . . . . 4 2 . 1 5 11 4 . . 2 1 . 1 . 5 8 1 8 Matter Fused 64 | . 2 . . . . . 5 6 . 1 3 7 10 1 . . 1 3 1 4 7 8 1 4 Heat Flow Errors 33 | . 2 . . . . . 1 2 . 1 2 3 3 . . . . 2 . 2 5 2 . 8 Energy Discharges 26 | . 1 . . . . . . 2 . . 2 . 1 . . . . . . 2 7 5 . 6 Parts Rejected 2 | . . . . . . . 1 . . . 1 . . . . . . . . . . . . . Parts Fused 1 | . . . . . . . . 1 . . . . . . . . . . . . . . . . Data Loss (minor) 34 | . . . . . . . 1 3 . 1 2 6 . 1 . . 4 2 . 1 4 7 . 2 Data Loss (major) 14 | . . . . . . 1 . . 1 . . 4 1 . . . . 1 . . 3 . 1 2 Misfires 11 | . 1 . . . . . . 1 . . . 2 2 . . . . 1 . . 1 1 1 1 Alerts 10 | . 1 . . . . . 1 . . . 2 . . . . . . . . . 2 2 . 2 Misdirections 4 | . . . . . . . . . . . . . . . . . . . . . . 3 . 1 Weapon Failures 22 | . 1 . . . . . 1 . . . . 2 1 . . 1 . . . 1 2 8 . 5 Overload Shots . | . . . . . . . . . . . . . . . . . . . . . . . . . Overflow Damage 1460 | . . 13 . . . . 27 . . 42 46 75 . . . 82 . . . . 590 169 . 416 Projectiles 592 | . . 11 . . . . . . . 42 46 21 . . . . . . . . 360 57 . 55 Explosions 218 | . . . . . . . . . . . . 54 . . . 82 . . . . 30 6 . 46 Melee 650 | . . 2 . . . . 27 . . . . . . . . . . . . . 200 106 . 315 Knockbacks 81 | . . 1 . . . . 4 . . 35 14 2 1 . . . . . . . 9 15 . . Impact 1 | . . 1 . . . . . . . . . . . . . . . . . . . . . . Kinetic 71 | . . . . . . . 4 . . 31 12 2 1 . . . . . . . 8 13 . . Secondary 9 | . . . . . . . . . . 4 2 . . . . . . . . . 1 2 . . Self-Inflicted Damage 328 | . . . . . . 15 32 . . . 58 . . . . . . . . . 211 . . 12 Shots 5 | . . . . . . 1 . . . . 2 . . . . . . . . . 2 . . . Rammed 31 | . 10 6 . . . 1 2 . . 1 3 . . . . . . . . . 4 . . 4 Targets Rammed 40 | . 12 7 . . . 1 2 . . 1 4 . . . . 4 . . . . 5 . . 4 Kicked 5 | . . . . . . . . . . . . . . . . 4 . . . . 1 . . . Crushed 4 | . 2 1 . . . . . . . . 1 . . . . . . . . . . . . . Highest Temperature 426 | . 296 311 . . 171 243 426 352 . 368 333 208 254 345 117 250 189 178 . 313 392 158 . 297 Average Temperature 108 | . 70 86 . . 76 100 114 125 . 110 127 54 81 120 54 103 109 74 . 123 158 54 . 89 Received Heat Transfer 3725 | . 177 423 . . 81 144 396 9 . 1083 681 45 . 18 . 226 18 9 . 317 98 . . . Effects 16 | . 4 1 . . . . 1 . . 5 1 . . . . . . . . . 4 . . . Energy Bleed 6 | . 1 1 . . . . . . . 1 . . . . . . . . . . 3 . . . Interference 8 | . 3 . . . . . . . . 4 1 . . . . . . . . . . . . . Matter Decay 2 | . . . . . . . 1 . . . . . . . . . . . . . 1 . . . Siege Activations 7 | . . . . . . . . . . . . . . . . . . . . 4 3 . . . Total Turns 80 | . . . . . . . . . . . . . . . . . . . . 36 44 . . . Longest Duration 22 | . . . . . . . . . . . . . . . . . . . . 13 22 . . . Martial Activations . | . . . . . . . . . . . . . . . . . . . . . . . . . Shielding Activations . | . . . . . . . . . . . . . . . . . . . . . . . . . Robots Disrupted 2 | . . . . . . . . . . . . . . . . . . . . . . . . 2 Combat Hostiles 1 | . . . . . . . . . . . . . . . . . . . . . . . . 1 Robots Corrupted 5 | . . . . . . . . . . . . . . . . . . . . . 4 . . 1 Combat Hostiles 4 | . . . . . . . . . . . . . . . . . . . . . 3 . . 1 Parts Fried 10 | . . . . . . 1 3 . . . . . . . . . . . . . 5 . . 1 Impact Corruptions 7 | . . 1 . . . . 1 . . . . . . . . . . . . . 4 1 . . Robots Melted 6 | . . . . . . . . . . 3 . . . . . . . . . 3 . . . . Combat Hostiles 5 | . . . . . . . . . . 2 . . . . . . . . . 3 . . . . Parts Melted 49 | . . . . . . 3 5 2 . 19 8 . . . . . 1 1 . 10 . . . . Heat Transferred 23652 | . 592 1036 . . 222 3575 3075 750 . 9100 1335 . . . . 400 185 185 . 2016 1044 37 . 100 Parts Sabotaged 3 | . . . . . . . . . . . . . . . . . . . . . . 3 . . Parts Stolen . | . . . . . . . . . . . . . . . . . . . . . . . . . Parts Stripped . | . . . . . . . . . . . . . . . . . . . . . . . . . Power Chain Reactions 1 | . . . . . . . . . . . . . . . . . . . . . . . . 1 Alert | -11 -10 -9 -9 -9 -8 -8 -8 -8 -8 -6 -5 -5 -5 -5 -4 -4 -4 -4 -4 -3 -3 -3 -3 -2 ------- Run | Yrd Mat Mat Min Exi Min Mat Sto Rec Scr Fac Fac Upp Upp War Pro Fac Upp Upp Zhi Pro Res Arm Lab Res Maximum Alert Level 3 | . . 2 . . . 1 1 . . 3 3 . . . . 1 . . . . 2 3 . 1 Low Security (%) 55 | 100 100 51 100 . 100 68 34 100 . 48 8 . . . . 78 . . . . 55 4 . 47 Level 1 35 | . . 42 . . . 31 65 . . 30 65 . . . . 21 . . . . 35 63 . 52 Level 2 5 | . . 6 . . . . . . . 11 13 . . . . . . . . . 9 21 . . Level 3 3 | . . . . . . . . . . 10 12 . . . . . . . . . . 10 . . Level 4 . | . . . . . . . . . . . . . . . . . . . . . . . . . Level 5 . | . . . . . . . . . . . . . . . . . . . . . . . . . High Security . | . . . . . . . . . . . . . . . . . . . . . . . . . Max Security . | . . . . . . . . . . . . . . . . . . . . . . . . . Peak Influence 918 | . 170 493 190 . 60 290 300 108 . 918 826 . . . . 253 . . . . 595 795 . 272 Initial 448 | . . 14 190 . . . 83 87 . . 448 . . . . . . . . . 34 306 . . Average 189 | . 48 181 172 . 7 148 197 15 . 253 390 . . . . 104 . . . . 185 375 . 157 Influence Increases 10626 | . 439 994 . . 115 851 1029 148 . 1570 1254 210 145 52 80 393 50 60 . 290 1156 1015 . 775 Destroy 0b10 Robot/C 5680 | . 240 580 . . 60 540 500 80 . 980 620 200 60 40 40 240 40 . . 240 480 440 . 300 Destroy 0b10 Robot/NC 565 | . 30 75 . . 45 45 50 5 . 125 35 . . . . 20 . . . . 70 15 . 50 Destroy Leader 1284 | . 68 158 . . 10 130 178 . . 232 122 10 10 . 10 60 10 . . 20 138 62 . 66 Allied During Kill 478 | . . . . . . . 145 29 . 17 . . . 12 . . . . . . 39 134 . 102 Trap Triggered on 0b10 30 | . . . . . . . . . . . . . . . . . . . . . 10 . . 20 Successful Hack 196 | . 11 34 . . . 37 16 4 . 25 62 . . . . . . . . . 7 . . . Select Force Hacks 240 | . 60 30 . . . 60 60 30 . . . . . . . . . . . . . . . . Disable Machine 585 | . 30 15 . . . . 60 . . 75 165 . . . . 45 . . . . 60 90 . 45 Destroy Structure 848 | . . 12 . . . 9 5 . . 41 100 . . . . 28 . . . . 322 214 . 117 Partial Spotted 75 | . . . . . . 15 15 . . 15 . . . . . . . . . . . . . 30 Lose Combat Pursuer 645 | . . 90 . . . 15 . . . 60 150 . 75 . 30 . . 60 . 30 30 60 . 45 Influence Decreases 10626 | . 404 541 338 150 115 653 1003 372 . 654 1370 684 349 174 80 182 261 60 . 238 623 815 785 775 Entered New Map 2831 | . . 21 298 150 . . 115 137 . . 468 296 63 122 . . 79 . . . 18 279 785 . Time Decay 5882 | . 404 520 40 . 115 483 628 230 . 392 612 368 286 22 80 172 182 60 . 218 446 326 . 298 Lost Part 730 | . . . . . . 20 10 5 . 70 120 20 . . . 10 . . . 20 101 50 . 304 Lost Ally 525 | . . . . . . . 100 . . 42 20 . . 30 . . . . . . . 160 . 173 Purge Threat 658 | . . . . . . 150 150 . . 150 150 . . . . . . . . . 58 . . . Squads Dispatched 59 | . 4 6 . . . 2 5 . . 17 11 . . . . 1 . 1 . . 6 1 . 5 Investigation 25 | . 3 4 . . . 2 5 . . 4 3 . . . . . . 1 . . 1 . . 2 Extermination 17 | . . . . . . . . . . 7 4 . . . . . . . . . 3 1 . 2 Reinforcement 11 | . 1 2 . . . . . . . 4 1 . . . . 1 . . . . 2 . . . Assault 3 | . . . . . . . . . . 1 2 . . . . . . . . . . . . . Garrison 2 | . . . . . . . . . . 1 1 . . . . . . . . . . . . . Intercept 1 | . . . . . . . . . . . . . . . . . . . . . . . . 1 Searches Triggered . | . . . . . . . . . . . . . . . . . . . . . . . . . Construction Impeded 3 | . . . . . . . . . . 3 . . . . . . . . . . . . . . Haulers Reinforced 1 | . . . . . . . . . . . . . . . . 1 . . . . . . . . Active Scanning Responses . | . . . . . . . . . . . . . . . . . . . . . . . . . Cargo Convoy Interrupts 1 | . . . . . . . . . . . . . . . . . . . . . . . . 1 Stealth | -11 -10 -9 -9 -9 -8 -8 -8 -8 -8 -6 -5 -5 -5 -5 -4 -4 -4 -4 -4 -3 -3 -3 -3 -2 --------- Run | Yrd Mat Mat Min Exi Min Mat Sto Rec Scr Fac Fac Upp Upp War Pro Fac Upp Upp Zhi Pro Res Arm Lab Res Distress Signals 19 | . . 2 . . . 3 . . . 4 1 . . . . . . . . . . 4 . 5 Communications Jammed 46 | . . . . . . . . . . . . . . . . 1 . . . . 45 . . . Distress Signals 31 | . . . . . . . . . . . . . . . . 1 . . . . 30 . . . Times Spotted 444 | . 25 47 . . 3 34 25 1 . 64 47 10 7 21 5 13 5 4 . 24 33 38 1 37 Peak Tracking Total 18 | . 3 5 . . 3 8 4 1 . 5 8 5 2 18 4 6 3 4 . 5 5 9 1 10 Tactical Retreats 28 | . . 5 . . . 1 . . . 2 5 . 4 . 2 . . 2 . 2 2 2 . 1 ECM-based Alert Blocks 8 | . . 7 . . . . . . . . . . . . . . . 1 . . . . . . Traps | -11 -10 -9 -9 -9 -8 -8 -8 -8 -8 -6 -5 -5 -5 -5 -4 -4 -4 -4 -4 -3 -3 -3 -3 -2 ------- Run | Yrd Mat Mat Min Exi Min Mat Sto Rec Scr Fac Fac Upp Upp War Pro Fac Upp Upp Zhi Pro Res Arm Lab Res Traps Triggered 11 | . 3 . . . . . 4 . . . . . . 2 . 1 . . . . . . . 1 Indirectly . | . . . . . . . . . . . . . . . . . . . . . . . . . Trap Hack Attempts 20 | . . . . . . . 20 . . . . . . . . . . . . . . . . . Triggered . | . . . . . . . . . . . . . . . . . . . . . . . . . Disarmed . | . . . . . . . . . . . . . . . . . . . . . . . . . Reprogrammed 4 | . . . . . . . 4 . . . . . . . . . . . . . . . . . Reused 3 | . . . . . . . . . . . . . . . . . . . . . 1 . . 2 Traps Extracted 4 | . . . . . . . 4 . . . . . . . . . . . . . . . . . Installed 3 | . . . . . . . . . . . . . . . . . . . . . 1 . . 2 Triggered 3 | . . . . . . . . . . . . . . . . . . . . . 1 . . 2 Most Traps Carried 3 | . . . . . . . 2 2 3 3 3 3 3 3 3 3 3 3 3 3 3 2 2 2 Machines | -11 -10 -9 -9 -9 -8 -8 -8 -8 -8 -6 -5 -5 -5 -5 -4 -4 -4 -4 -4 -3 -3 -3 -3 -2 ---------- Run | Yrd Mat Mat Min Exi Min Mat Sto Rec Scr Fac Fac Upp Upp War Pro Fac Upp Upp Zhi Pro Res Arm Lab Res Machines Disabled 47 | . 2 1 . . . . 4 . . 5 11 2 . . . 3 . . . 3 4 6 3 3 Max in Single Turn 3 | . 1 1 . . . . 1 . . 1 3 1 . . . 2 . . . 1 1 1 1 1 Garrison Access 1 | . . . . . . . . . . . 1 . . . . . . . . . . . . . Machines Repaired . | . . . . . . . . . . . . . . . . . . . . . . . . . Machines Dismantled . | . . . . . . . . . . . . . . . . . . . . . . . . . Machines Sabotaged . | . . . . . . . . . . . . . . . . . . . . . . . . . Overloaded Fab Kills . | . . . . . . . . . . . . . . . . . . . . . . . . . Hacking | -11 -10 -9 -9 -9 -8 -8 -8 -8 -8 -6 -5 -5 -5 -5 -4 -4 -4 -4 -4 -3 -3 -3 -3 -2 --------- Run | Yrd Mat Mat Min Exi Min Mat Sto Rec Scr Fac Fac Upp Upp War Pro Fac Upp Upp Zhi Pro Res Arm Lab Res Machines Accessed 121 | . 8 9 . 4 . 9 15 8 4 11 14 1 . 5 . 2 1 3 9 1 5 5 2 5 Terminals 59 | . 6 6 . . . 6 11 6 . 4 6 . . . . 2 . 1 . 1 3 5 . 2 Fabricators 2 | . . . . . . . . . . 1 1 . . . . . . . . . . . . . Repair Stations 3 | . . . . . . . 2 . . . 1 . . . . . . . . . . . . . Recycling Units 21 | . 2 1 . . . 2 2 2 . 4 4 . . . . . . . . . 2 . . 2 Scanalyzers 7 | . . 2 . . . 1 . . . 2 1 . . . . . . . . . . . . 1 Garrison Access 1 | . . . . . . . . . . . 1 . . . . . . . . . . . . . Total Hacks 352 | . 21 31 . 4 . 30 29 17 15 23 31 1 . 12 . 6 1 6 48 3 12 11 22 29 Successful 229 | . 9 18 . 4 . 22 12 2 15 11 18 1 . 12 . 1 1 6 48 3 5 3 22 16 Failed 120 | . 11 12 . . . 8 17 15 . 12 13 . . . . 5 . . . . 7 8 . 12 Catastrophic 25 | . 1 1 . . . 2 5 7 . 2 2 . . . . 1 . . . . 1 2 . 1 Database Lockouts 3 | . 1 1 . . . . . . . . . . . . . . . . . . . . . 1 Manual 102 | . 9 11 . . . 11 15 13 . 9 6 . . . . 5 . . . . 9 3 1 10 Terminals 155 | . 19 19 . . . 18 23 13 . 8 14 . . . . 6 . 4 . 3 8 11 . 9 Fabricators 4 | . . . . . . . . . . 2 2 . . . . . . . . . . . . . Repair Stations 7 | . . . . . . . 3 . . . 4 . . . . . . . . . . . . . Recycling Units 39 | . 2 1 . . . 2 3 4 . 8 6 . . . . . . . . . 4 . . 9 Scanalyzers 40 | . . 11 . . . 10 . . . 5 3 . . . . . . . . . . . . 11 Garrison Access 2 | . . . . . . . . . . . 2 . . . . . . . . . . . . . Terminal Hacks 163 | . 6 6 . 4 . 9 7 1 15 2 8 1 . 12 . 1 1 6 48 3 3 3 22 5 Record 98 | . . . . 4 . 2 . . 14 . . . . 10 . 1 . 4 36 3 1 1 21 1 Part Schematic 7 | . . 1 . . . . . . . . 1 . . . . . . . 4 . 1 . . . Robot Analysis 7 | . 1 2 . . . . . . . . . . . . . . . . 4 . . . . . Prototype ID Bank 10 | . 1 . . . . 3 . . . . 1 . . . . . . . 4 . . . . 1 Open Door 9 | . . . . . . . 2 . . . . 1 . 2 . . 1 2 . . . 1 . . Level Access Points 1 | . . . . . . . . . . . . . . . . . . . . . . . . 1 Branch Access Points 4 | . . 1 . . . 1 . . . 1 1 . . . . . . . . . . . . . Terminal Index 3 | . . 1 . . . . . 1 . . . . . . . . . . . . . . . 1 Fabricator Index 2 | . . . . . . . 1 . . . . . . . . . . . . . . . . 1 Scanalyzer Index 2 | . . . . . . 1 . . . . 1 . . . . . . . . . . . . . Unreport Threat 5 | . . . . . . 1 1 . . 1 1 . . . . . . . . . 1 . . . Locate Traps 5 | . 1 1 . . . . 2 . . . 1 . . . . . . . . . . . . . Dispatch Records 1 | . 1 . . . . . . . . . . . . . . . . . . . . . . . Surveillance Status 1 | . 1 . . . . . . . . . . . . . . . . . . . . . . . Hauler Manifests 2 | . 1 . . . . . . . . . 1 . . . . . . . . . . . . . Registered Components 3 | . . . . . . 1 1 . . . 1 . . . . . . . . . . . . . Zone Layout 1 | . . . . . . . . . . . . . . . . . . . . . . 1 . . Proto ID Catalog 1 | . . . . . . . . . 1 . . . . . . . . . . . . . . . Release Object 1 | . . . . . . . . . . . . . . . . . . . . . . . 1 . Fabricator Hacks 2 | . . . . . . . . . . 2 . . . . . . . . . . . . . . Network Status 1 | . . . . . . . . . . 1 . . . . . . . . . . . . . . Load Schematic 1 | . . . . . . . . . . 1 . . . . . . . . . . . . . . Repair Station Hacks 6 | . . . . . . . 2 . . . 4 . . . . . . . . . . . . . Scan Component 3 | . . . . . . . 1 . . . 2 . . . . . . . . . . . . . Repair 3 | . . . . . . . 1 . . . 2 . . . . . . . . . . . . . Recycling Unit Hacks 4 | . . . . . . . . . . . . . . . . . . . . . . . . 4 Process 1 | . . . . . . . . . . . . . . . . . . . . . . . . 1 Report Inventory 1 | . . . . . . . . . . . . . . . . . . . . . . . . 1 Retrieve Matter 2 | . . . . . . . . . . . . . . . . . . . . . . . . 2 Scanalyzer 29 | . . 9 . . . 9 . . . 3 2 . . . . . . . . . . . . 6 Insert Component 5 | . . 2 . . . 1 . . . . 1 . . . . . . . . . . . . 1 Analyze 4 | . . 2 . . . 1 . . . . 1 . . . . . . . . . . . . . Retrieve Study 20 | . . 5 . . . 7 . . . 3 . . . . . . . . . . . . . 5 Garrison Access Hacks 1 | . . . . . . . . . . . 1 . . . . . . . . . . . . . Seal Access 1 | . . . . . . . . . . . 1 . . . . . . . . . . . . . Unauthorized Hacks 24 | . 3 3 . . . 4 3 1 . 4 3 . . . . . . . . . 2 . . 1 Terminals 6 | . 1 2 . . . 2 . . . . . . . . . . . . . . 1 . . . Track 3 | . 1 1 . . . 1 . . . . . . . . . . . . . . . . . . Operators 3 | . . 1 . . . 1 . . . . . . . . . . . . . . 1 . . . Fabricators . | . . . . . . . . . . . . . . . . . . . . . . . . . Repair Stations 1 | . . . . . . . 1 . . . . . . . . . . . . . . . . . Patch 1 | . . . . . . . 1 . . . . . . . . . . . . . . . . . Recycling Units 17 | . 2 1 . . . 2 2 1 . 4 3 . . . . . . . . . 1 . . 1 Tunnel 8 | . 2 1 . . . 2 2 1 . . . . . . . . . . . . . . . . Fedlink 6 | . . . . . . . . . . 3 3 . . . . . . . . . . . . . Scrapoids 3 | . . . . . . . . . . 1 . . . . . . . . . . 1 . . 1 Scanalyzers . | . . . . . . . . . . . . . . . . . . . . . . . . . Garrison Access . | . . . . . . . . . . . . . . . . . . . . . . . . . Data Cores Recovered 3 | . . . . . . . . . . . . . . . . 1 . . . . 1 1 . . Used 2 | . . . . . . . . . . . . . . . . 1 . . . . 1 . . . Hacking Detections 71 | . 5 8 . . . 5 11 7 . 8 10 . . . . 2 . 1 . 1 4 5 . 4 Full Trace Events 9 | . . 3 . . . . 1 3 . . . . . . . . . 1 . . . . . 1 Feedback Events 3 | . . . . . . . . 2 . . . . . . . . . . . . . . . 1 Corruption 1 | . . . . . . . . 1 . . . . . . . . . . . . . . . . Hackware Fried 2 | . . . . . . . . 1 . . . . . . . . . . . . . . . 1 Feedback Blocked . | . . . . . . . . . . . . . . . . . . . . . . . . . Robot Schematics Acquired . | . . . . . . . . . . . . . . . . . . . . . . . . . Robots Built . | . . . . . . . . . . . . . . . . . . . . . . . . . Authchips . | . . . . . . . . . . . . . . . . . . . . . . . . . Time . | . . . . . . . . . . . . . . . . . . . . . . . . . Total Robot Build Rating . | . . . . . . . . . . . . . . . . . . . . . . . . . Part Schematics Acquired 11 | . . 3 . . . 1 . . . . 2 . . . . . . . 4 . 1 . . . Parts Built . | . . . . . . . . . . . . . . . . . . . . . . . . . Authchips . | . . . . . . . . . . . . . . . . . . . . . . . . . Time . | . . . . . . . . . . . . . . . . . . . . . . . . . Total Part Build Rating . | . . . . . . . . . . . . . . . . . . . . . . . . . Part Studies Acquired 20 | . . 5 . . . 7 . . . 3 . . . . . . . . . . . . . 5 Parts Repaired 3 | . . . . . . . 1 . . . 2 . . . . . . . . . . . . . Time 102 | . . . . . . . 26 . . . 76 . . . . . . . . . . . . . Parts Recycled . | . . . . . . . . . . . . . . . . . . . . . . . . . Recycled Matter 34 | . . . . . . . . . . . . . . . . . . . . . . . . 34 Retrieved Matter 34 | . . . . . . . . . . . . . . . . . . . . . . . . 34 Retrieved Components . | . . . . . . . . . . . . . . . . . . . . . . . . . Parts Scanalyzed 5 | . . 2 . . . 1 . . . . 1 . . . . . . . . . . . . 1 Part Schematics Acquired 4 | . . 2 . . . 1 . . . . 1 . . . . . . . . . . . . . Parts Damaged 1 | . . . . . . . . . . . . . . . . . . . . . . . . 1 Bothacking | -11 -10 -9 -9 -9 -8 -8 -8 -8 -8 -6 -5 -5 -5 -5 -4 -4 -4 -4 -4 -3 -3 -3 -3 -2 ------------ Run | Yrd Mat Mat Min Exi Min Mat Sto Rec Scr Fac Fac Upp Upp War Pro Fac Upp Upp Zhi Pro Res Arm Lab Res Used RIF Installer . | . . . . . . . . . . . . . . . . . . . . . . . . . Robots Hacked 1 | . . . . . . . . . . 1 . . . . . . . . . . . . . . Non-combat 1 | . . . . . . . . . . 1 . . . . . . . . . . . . . . Combat . | . . . . . . . . . . . . . . . . . . . . . . . . . Robot Hacks Applied 1 | . . . . . . . . . . 1 . . . . . . . . . . . . . . find_chute 1 | . . . . . . . . . . 1 . . . . . . . . . . . . . . Relay Couplers Released . | . . . . . . . . . . . . . . . . . . . . . . . . . Fabnet Peak Effective % . | . . . . . . . . . . . . . . . . . . . . . . . . . Robots Rewired 9 | . . . . . . . . . . . . . . 5 . . . . . . . 4 . . Allies Hacked . | . . . . . . . . . . . . . . . . . . . . . . . . . Hacks Repelled . | . . . . . . . . . . . . . . . . . . . . . . . . . Allies | -11 -10 -9 -9 -9 -8 -8 -8 -8 -8 -6 -5 -5 -5 -5 -4 -4 -4 -4 -4 -3 -3 -3 -3 -2 -------- Run | Yrd Mat Mat Min Exi Min Mat Sto Rec Scr Fac Fac Upp Upp War Pro Fac Upp Upp Zhi Pro Res Arm Lab Res Total Allies 47 | . . . . . . . 10 . . 5 . . . 5 . . . . . . 5 4 . 18 Largest Group 10 | . . . . . . . 10 5 5 5 1 . . 5 . . . . . . 5 5 . 7 Highest-Rated Group 323 | . . . . . . . 173 80 80 149 28 . . 254 . . . . . . 320 320 . 323 Highest-Rated Ally 67 | . . . . . . . 29 16 16 31 28 . . 64 . . . . . . 64 64 . 67 Initial UFD Resources 58 | . . . . . . . . . . 22 38 54 54 54 56 56 56 56 56 58 58 55 55 58 Total Orders 18 | . . . . . . . . . . 16 . . . . . . . . . . . 2 . . STAY 5 | . . . . . . . . . . 4 . . . . . . . . . . . 1 . . FOLLOW 2 | . . . . . . . . . . 1 . . . . . . . . . . . 1 . . RETURN 11 | . . . . . . . . . . 11 . . . . . . . . . . . . . . Ally Attacks 372 | . . . . . . . 70 . . 55 5 . . 36 . . . . . . 12 102 . 92 Total Damage 9174 | . . . . . . . 788 . . 1023 105 . . 1550 . . . . . . 400 3021 . 2287 Kills 44 | . . . . . . . 7 . . 6 . . . 2 . . . . . . 3 12 . 14 Allies Corrupted 3 | . . . . . . . . . . . . . . . . . . . . . . 1 . 2 Allies Melted 1 | . . . . . . . . . . . . . . . . . . 1 . . . . . . Intel | -11 -10 -9 -9 -9 -8 -8 -8 -8 -8 -6 -5 -5 -5 -5 -4 -4 -4 -4 -4 -3 -3 -3 -3 -2 ------- Run | Yrd Mat Mat Min Exi Min Mat Sto Rec Scr Fac Fac Upp Upp War Pro Fac Upp Upp Zhi Pro Res Arm Lab Res Active Infowar (turns) 14227 | . 696 512 . . . 867 179 . . 2405 1393 845 630 1236 531 469 838 726 324 832 1136 185 70 353 Optics 1270 | . . . . . . 502 . . . 768 . . . . . . . . . . . . . . Sensors 10 | . . . . . . . . . . . . . . . . . . . . . . . . 10 IFF 4710 | . . . . . . . . . . 822 . . 210 1236 531 426 838 647 . . . . . . Terrain 8842 | . . . . . . . . . . 813 1338 844 630 1236 531 276 838 662 324 672 669 . . 9 Structural 334 | . . . . . . . . . . . . . . . . . . . . . . . . 334 Traps 254 | . . . . . . . . . . 254 . . . . . . . . . . . . . . Seismic 1107 | . . 402 . . . 365 179 . . . . . . . . . . . . . 161 . . . Cloaking 3517 | . . . . . . . . . . . . . . . . 63 804 724 289 800 582 185 70 . Jamming 4525 | . . . . . . . . . . 80 55 845 408 . 529 254 . 121 324 832 1077 . . . ECM 858 | . 696 110 . . . . . . . . . . . . . . . 52 . . . . . . Robot Analysis Total 7 | . 1 2 . . . . . . . . . . . . . . . . 4 . . . . . Derelict Logs Recovered 6 | . . . . . . . . . . . . 1 . . 1 . 1 3 . . . . . . Drone Launches 15 | . . . . . . . . . . 15 . . . . . . . . . . . . . . Drone Recoveries 15 | . . . . . . . . . . 15 . . . . . . . . . . . . . . Exploration | -11 -10 -9 -9 -9 -8 -8 -8 -8 -8 -6 -5 -5 -5 -5 -4 -4 -4 -4 -4 -3 -3 -3 -3 -2 ------------- Run | Yrd Mat Mat Min Exi Min Mat Sto Rec Scr Fac Fac Upp Upp War Pro Fac Upp Upp Zhi Pro Res Arm Lab Res Turns Passed 28351 | 24 1548 1565 88 785 751 1811 2179 1491 3095 3498 2015 851 630 1236 531 469 838 726 324 832 1218 738 191 917 Spaces Moved 14645 | 30 720 663 56 455 314 743 793 646 1589 1494 1177 391 261 561 446 256 709 582 262 479 540 537 205 736 Core 54 | 30 5 . . . . . . . . . . . . . . . . . . . . . . 19 Treads 2533 | . 715 659 56 405 . . . . . 125 75 . . . . . . . . 32 335 131 . . Legs 2945 | . . . . . . . . . . . . . . 38 446 256 709 582 262 447 205 . . . Wheels 6959 | . . 4 . 50 314 743 793 646 1589 1369 1102 193 . 156 . . . . . . . . . . Hover 2154 | . . . . . . . . . . . . 198 261 367 . . . . . . . 406 205 717 Flight . | . . . . . . . . . . . . . . . . . . . . . . . . . Fastest Speed 43 | 50 50 150 160 160 215 190 190 210 166 100 80 160 197 114 114 103 107 107 107 107 110 45 45 43 Average Speed 153 | 50 159 161 160 166 215 199 213 224 192 171 116 199 231 185 114 108 107 107 107 120 148 78 47 46 Slowest Speed 290 | 50 160 200 160 280 215 215 225 225 225 290 223 257 257 197 114 111 110 179 110 260 250 237 151 100 Overloaded Moves . | . . . . . . . . . . . . . . . . . . . . . . . . . Propulsion Burnouts . | . . . . . . . . . . . . . . . . . . . . . . . . . Robots Hopped . | . . . . . . . . . . . . . . . . . . . . . . . . . Potential Cave-ins 6 | . . . . . . . . . . . 4 2 . . . . . . . . . . . . Cave-ins Triggered . | . . . . . . . . . . . . . . . . . . . . . . . . . Teleports 2 | . . . . . . . . . . . . . . . . . . . . . . 1 . 1 Exploration Rate (%) 57 | 3 97 66 20 90 71 53 95 98 84 42 42 62 42 71 65 7 77 76 62 69 18 28 97 10 Regions Visited 24 Branch Regions 16 Pre-discovered Areas 15 | . 2 1 . . . 2 2 1 . 1 . . . . . . 1 1 3 1 . . . . Known Exits Taken 6 | . . 1 . . . 1 . . . . 1 . . . . 1 . . . . 1 . 1 . Unknown Exits Taken 18 | 1 1 . 1 1 1 . 1 1 1 1 . 1 1 1 1 . 1 1 1 1 . 1 . . Scrap Searched 18 | . . . . . 1 . . . 6 . . 2 1 . . . 1 2 . 5 . . . . Spaces Dug 78 | . . . . . . 6 . . . 10 24 4 . . 1 4 . 4 . 4 8 . . 13 Terrain Destroyed 534 | . . 8 . . . 7 . . . 38 58 24 6 2 2 13 2 7 . 22 198 113 . 34 Melee 8 | . . . . . . . . . . . . . . . . . . . . . 3 . . 5 Projectile 253 | . . . . . . 7 . . . 29 54 10 6 . 1 5 2 7 . 15 67 29 . 21 AOE 257 | . . 8 . . . . . . . 9 . 14 . . . . . . . 7 127 84 . 8 Terrain Rammed . | . . . . . . . . . . . . . . . . . . . . . . . . . Walls Destroyed . | . . . . . . . . . . . . . . . . . . . . . . . . . Machines Disabled . | . . . . . . . . . . . . . . . . . . . . . . . . . Actions | -11 -10 -9 -9 -9 -8 -8 -8 -8 -8 -6 -5 -5 -5 -5 -4 -4 -4 -4 -4 -3 -3 -3 -3 -2 --------- Run | Yrd Mat Mat Min Exi Min Mat Sto Rec Scr Fac Fac Upp Upp War Pro Fac Upp Upp Zhi Pro Res Arm Lab Res Total 18735 | 36 1025 938 55 480 352 968 1179 667 1637 2077 1607 439 275 739 459 391 779 671 309 658 814 777 263 1140 Wait 1651 | . 207 80 . 2 10 63 214 4 13 220 196 6 1 80 6 35 54 41 . 95 55 69 4 196 Move 14622 | 29 719 663 55 454 313 742 792 645 1588 1493 1176 390 260 560 445 255 708 581 261 478 539 536 204 736 Hop . | . . . . . . . . . . . . . . . . . . . . . . . . . Pick Up 292 | 3 16 14 . 16 11 44 23 5 11 29 21 3 5 12 . 9 1 6 6 10 19 15 5 8 Fast Attach 211 | 4 2 9 . 1 . 5 8 . 3 12 16 5 . 8 2 10 4 8 13 7 20 22 13 39 Attach 111 | . 1 5 . . . 6 7 2 1 13 8 10 . 1 . 6 . 1 6 5 16 8 3 12 Detach 84 | . . 7 . 1 . 3 9 . 1 9 6 6 . 2 . 6 1 3 5 . 6 3 4 12 Swap 298 | . 8 22 . 5 1 14 17 1 5 96 29 1 2 6 1 15 4 10 1 10 27 16 . 7 Drop 344 | . 7 24 . 1 . 40 15 2 15 40 25 . 1 20 1 16 5 15 17 14 26 29 12 19 Fire 897 | . 53 108 . . 17 50 48 8 . 161 126 18 6 10 4 35 2 6 . 38 93 31 1 82 Melee 60 | . . . . . . . . . . 1 . . . . . . . . . . 7 13 17 22 Ram 8 | . . . . . . 1 2 . . . 1 . . . . . . . . . . . . 4 Kick 5 | . . . . . . . . . . . . . . . . 4 . . . . 1 . . . Crush 26 | . 12 6 . . . . . . . 1 3 . . . . . . . . . 4 . . . Escape Stasis 26 | . . . . . . . 24 . . 2 . . . . . . . . . . . . . . Rewire 75 | . . . . . . . . . . . . . . 40 . . . . . . . 35 . . Trap 24 | . . . . . . . 20 . . . . . . . . . . . . . 1 . . 3 Miscellaneous 1 | . . . . . . . . . . . . . . . . . . . . 1 . . . . Route ------- -11/Scrapyard -10/Materials (discovered 4 exits: *Mat x3 / [*Min]) -9/Materials (discovered 4 exits: *Mat x2 / *Min x2) -9/Mines -9/Exiles -8/Mines (discovered 2 exits: *Mat x2) -8/Materials (discovered 3 exits: [*Fac] / *Sto x2) -8/Storage (discovered 2 exits: [*Fac] / *Rec) -8/Recycling (discovered 2 exits: *Fac / *Scr) -8/Scraptown (discovered 2 exits: *Fac x2) -6/Factory (discovered 3 exits: *Fac / *Low x2) -5/Factory (discovered 4 exits: *Fac x2 / *Upp x2) -5/Upper Caves -5/Upper Caves (discovered 2 exits: Fac / *War) -5/Warlord -4/Proximity Caves -4/Factory (discovered 3 exits: Res / *Upp x2) -4/Upper Caves -4/Upper Caves -4/Zhirov -3/Proximity Caves -3/Research (discovered 3 exits: *Res / *Arm / [*Qua]) -3/Armory -3/Lab -2/Research (discovered 3 exits: Acc x3) History --------- Turn | Location | Event 7 | -11/Scrapyard | Discovered new exit (range 16) 25 | -11/Scrapyard | Entered Materials 157 | -10/Materials | Central database locked down 196 | -10/Materials | Discovered new exit (range 13) 308 | -10/Materials | Build established: Mutant 322 | -10/Materials | Discovered new exit (range 14) 655 | -10/Materials | Discovered new exit (range 16) 742 | -10/Materials | Discovered new exit (range 12) 1573 | -10/Materials | Entered another Materials area 1573 | -9/Materials | Evolved 2 slots: Propulsion x1, Weapon x1 1898 | -9/Materials | Build established: Gunner 2009 | -9/Materials | Discovered new exit (range 10) 2459 | -9/Materials | Discovered new exit (range 12) 2493 | -9/Materials | Build established: Tank 2783 | -9/Materials | Discovered new exit (range 9) 2973 | -9/Materials | Identified exit to Mines 2973 | -9/Materials | Central database locked down 2981 | -9/Materials | Discovered new exit (range 4) 3011 | -9/Materials | Build established: Scavenger-Gunner 3138 | -9/Materials | Entered Mines 3220 | -9/Mines | Deemed a non-threat by the Exiles lab entrance 3220 | -9/Mines | Discovered new exit (range 5) 3226 | -9/Mines | Entered Exiles 3226 | -9/Exiles | Found Exiles lab abandoned 3979 | -9/Exiles | Discovered new exit (range 12) 4011 | -9/Exiles | Entered Mines 4034 | -8/Mines | Discovered new exit (range 9) 4136 | -8/Mines | Discovered new exit (range 9) 4159 | -8/Mines | Core integrity fell below 50% 4174 | -8/Mines | Build established: Hauler-Gunner 4762 | -8/Mines | Entered Materials 4762 | -8/Materials | Evolved 2 slots: Utility x2 5290 | -8/Materials | Discovered new exit (range 7) 5376 | -8/Materials | Build established: Hauler-Skirmisher 5490 | -8/Materials | Destroyed 7 combat bots 5941 | -8/Materials | Build established: Hauler-Tank 5989 | -8/Materials | Discovered new exit (range 3) 6096 | -8/Materials | Identified exit to Storage 6556 | -8/Materials | Build established: Hauler-Gunner 6573 | -8/Materials | Entered Storage 7360 | -8/Storage | Build established: Hauler-Tank 7428 | -8/Storage | Assisted by bots powering up and referring to "LRC-V3" 7658 | -8/Storage | Lost 3 allies 7774 | -8/Storage | Discovered new exit (range 15) 8028 | -8/Storage | Found Prototype Launcher 8253 | -8/Storage | Repaired Humpback 8684 | -8/Storage | Used back door to open Recycling access 8684 | -8/Storage | Discovered new exit (range 5) 8752 | -8/Storage | Entered Recycling 8752 | -8/Recycling | Accompanied by 5 allies 9039 | -8/Recycling | Hacking Suite fried by hacking feedback 9680 | -8/Recycling | Scanned before Scraplab entrance 9741 | -8/Recycling | Discovered new exit (range 15) 10238 | -8/Recycling | Discovered new exit (range 2) 10243 | -8/Recycling | Entered Scraptown 10243 | -8/Scraptown | Accompanied by 5 allies 10297 | -8/Scraptown | System corruption cleaned by C-Scrubber 10484 | -8/Scraptown | Heard Great Nut preacher, LISTEN AND RECITE! 10518 | -8/Scraptown | Visited Assassins FH 10583 | -8/Scraptown | Visited Symbiants 10637 | -8/Scraptown | Visited Comm Corps 10756 | -8/Scraptown | Visited Awakened 10810 | -8/Scraptown | Visited Bundlers 11168 | -8/Scraptown | Discovered new exit (range 13) 11343 | -8/Scraptown | Visited UFD Registry 11343 | -8/Scraptown | Registered with UFD as "Nullpod" 11382 | -8/Scraptown | Visited IN-MT5's Study 12020 | -8/Scraptown | Visited Chapter 10 12090 | -8/Scraptown | Visited Scrapoid Research Area 12120 | -8/Scraptown | Visited Science Guys 12393 | -8/Scraptown | Visited Science Testing Area 12418 | -8/Scraptown | Visited Supply Room 12451 | -8/Scraptown | Build established: Hauler-Gunner 12456 | -8/Scraptown | Visited Derelict Rescue Squad 12469 | -8/Scraptown | Found DRS Beacon 12491 | -8/Scraptown | Visited Curators Association 12543 | -8/Scraptown | Visited Junk Repository 12653 | -8/Scraptown | Found Scrap Suit 12790 | -8/Scraptown | Visited Cartography Club 12846 | -8/Scraptown | Found Surveybot 17 Chip 13217 | -8/Scraptown | Met Optimus 13217 | -8/Scraptown | Accepted into 0bPrime 13323 | -8/Scraptown | Discovered new exit (range 5) 13338 | -8/Scraptown | Entered Factory 13338 | -6/Factory | Accompanied by 5 allies 13338 | -6/Factory | Evolved 4 slots: Propulsion x1, Utility x2, Weapon x1 13636 | -6/Factory | Build established: Hauler-Skirmisher 13826 | -6/Factory | Lost 3 allies 14495 | -6/Factory | Discovered new exit (range 14) 14672 | -6/Factory | Spotted B-75 Beast 14820 | -6/Factory | Build established: Hauler-Tank 14904 | -6/Factory | Loaded intel: 8 recycling unit locations 15246 | -6/Factory | Destroyed B-75 Beast 15476 | -6/Factory | Learned location of Protoforge (-2) 16138 | -6/Factory | First assault squad dispatched 16240 | -6/Factory | Identified exit to Lower Caves 16456 | -6/Factory | Lost 5 parts (3u2w) 16494 | -6/Factory | Discovered new exit (range 20) 16605 | -6/Factory | Identified Gui. Missile Launcher 16619 | -6/Factory | Garrison activated, responded to threat 16682 | -6/Factory | Scrapoid reinforcements arrived 16696 | -6/Factory | Found Scrap Suit 16740 | -6/Factory | Lost 4 allies 16836 | -6/Factory | Entered another Factory area 16836 | -5/Factory | Accompanied by 1 ally 16836 | -5/Factory | Evolved 2 slots: Power x1, Propulsion x1 16898 | -5/Factory | Repaired Arm. Treads+ 16937 | -5/Factory | Repaired Ovr. Barrage Gun 17150 | -5/Factory | Identified exit to Upper Caves 17245 | -5/Factory | Build established: Scavenger-Scrapper 17273 | -5/Factory | Loaded intel: 8 recycling unit locations 17626 | -5/Factory | Watched by a mysterious "MATRIX" hacker 17887 | -5/Factory | Discovered new exit (range 20) 17985 | -5/Factory | Build established: Scavenger-Skirmisher 18505 | -5/Factory | Discovered new exit (range 18) 18618 | -5/Factory | Lost 4 parts (2n2w) 18636 | -5/Factory | First assault squad dispatched 18759 | -5/Factory | Garrison activated, responded to threat 18851 | -5/Factory | Entered Upper Caves 18872 | -5/Upper Caves | Lost 8 parts (1p3n2u2w) 19078 | -5/Upper Caves | System corruption reached 10% 19173 | -5/Upper Caves | Learned 4 Factory zone layouts 19489 | -5/Upper Caves | Discovered new exit (range 20) 19702 | -5/Upper Caves | Entered another Upper Caves area 19801 | -5/Upper Caves | Discovered new exit (range 20) 20163 | -5/Upper Caves | Discovered new exit (range 20) 20332 | -5/Upper Caves | Entered Warlord 20408 | -5/Warlord | System corruption cleaned by Quarantine Array 20600 | -5/Warlord | Found Signal Generator 20729 | -5/Warlord | Received a Watcher feed algorithm from an ecstatic Tinkerer 21043 | -5/Warlord | Visited the Vortex Lab 21054 | -5/Warlord | Warlord's base attacked by MAIN.C 21068 | -5/Warlord | Met EX-DEC 21092 | -5/Warlord | Found Prototype Energy Gun 21095 | -5/Warlord | Found Prototype Energy Gun 21105 | -5/Warlord | Found Prototype Energy Gun 21336 | -5/Warlord | Opened side exit 21370 | -5/Warlord | Build established: Commander-Skirmisher 21404 | -5/Warlord | Warlord forces counterattacked 21455 | -5/Warlord | Spotted Executioner 21460 | -5/Warlord | Spotted B-86 Titan 21466 | -5/Warlord | Spotted B-75 Beast 21492 | -5/Warlord | Allies destroyed B-75 Beast 21516 | -5/Warlord | Lost 9 allies 21526 | -5/Warlord | Found Prototype Processor 21527 | -5/Warlord | Discovered new exit (range 19) 21561 | -5/Warlord | Spotted Striker 21568 | -5/Warlord | Entered Proximity Caves 21597 | -4/Proximity Caves | Lost 12 allies 21665 | -4/Proximity Caves | Learned 4 Research zone layouts 21675 | -4/Proximity Caves | Spotted B-86 Titan 21760 | -4/Proximity Caves | Build established: Scavenger-Skirmisher 21999 | -4/Proximity Caves | Discovered new exit (range 9) 22043 | -4/Proximity Caves | Found Alien Artifact 22043 | -4/Proximity Caves | Identified Core Expander 22043 | -4/Proximity Caves | Installed Core Expander, added new Weapon slot 22099 | -4/Proximity Caves | Entered Factory 22099 | -4/Factory | Evolved 2 slots: Propulsion x1, Utility x1 22100 | -4/Factory | Identified exit to Upper Caves 22100 | -4/Factory | Identified Exp. Core Analyzer 22548 | -4/Factory | Discovered exit to Upper Caves (range 17) 22558 | -4/Factory | Discovered new exit (range 18) 22568 | -4/Factory | Entered Upper Caves 22716 | -4/Upper Caves | Learned location of Armory (-3) 22779 | -4/Upper Caves | Spotted B-86 Titan 22969 | -4/Upper Caves | Discovered new exit (range 14) 23403 | -4/Upper Caves | Attracted the attention of an 0b10 checkpoint 23406 | -4/Upper Caves | Entered another Upper Caves area 23417 | -4/Upper Caves | Learned Research trap positions 23589 | -4/Upper Caves | Found DCF Scrap (13 items) 23704 | -4/Upper Caves | Learned Research interactive machine intel 24038 | -4/Upper Caves | Attracted the attention of an 0b10 base 24040 | -4/Upper Caves | Learned location of Extension (-4) 24040 | -4/Upper Caves | Learned Research trap positions 24040 | -4/Upper Caves | Learned Factory emergency access door positions 24085 | -4/Upper Caves | Spotted B-86 Titan 24109 | -4/Upper Caves | Discovered new exit (range 16) 24132 | -4/Upper Caves | Entered Zhirov 24135 | -4/Zhirov | Discovered new exit (range 3) 24154 | -4/Zhirov | Met Zhirov 24174 | -4/Zhirov | Learned location of Quarantine (-3) 24174 | -4/Zhirov | Learned location of Testing (-2) 24194 | -4/Zhirov | Zhirov requested help retrieving the SGEMP Prototype 24215 | -4/Zhirov | Found Alien Artifact 24215 | -4/Zhirov | Identified Integrated Reactor 24215 | -4/Zhirov | Installed Integrated Reactor, increased core energy generation (+10) 24236 | -4/Zhirov | Found Alien Artifact 24271 | -4/Zhirov | Identified Vortex Rail (x2) 24272 | -4/Zhirov | Identified Vortex Rifle 24456 | -4/Zhirov | Entered Proximity Caves 24570 | -3/Proximity Caves | Activated DRS Beacon 24642 | -3/Proximity Caves | Build established: Scavenger-Tank 24670 | -3/Proximity Caves | Encountered a Derelict sapper outpost 24916 | -3/Proximity Caves | Attracted the attention of an 0b10 base 24965 | -3/Proximity Caves | Lost 3 allies 25274 | -3/Proximity Caves | Discovered new exit (range 15) 25288 | -3/Proximity Caves | Entered Research 25288 | -3/Research | Evolved 2 slots: Power x1, Utility x1 25289 | -3/Research | Identified exit to Armory 25291 | -3/Research | Loaded intel: 81 trap records 25292 | -3/Research | Loaded intel: 43 interactive machine locations 25298 | -3/Research | Discovered new exit (range 20) 25335 | -3/Research | Discovered new exit (range 15) 25640 | -3/Research | Lost 9 parts (1p2n3u3w) 25962 | -3/Research | System corruption reached 10% 26341 | -3/Research | Spotted B-86 Titan 26357 | -3/Research | Destroyed B-86 Titan 26365 | -3/Research | Found Prototype Processor 26379 | -3/Research | Identified Exp. Signal Interpreter 26435 | -3/Research | Scrapoids reinforcements arrived? 26506 | -3/Research | Entered Armory 26506 | -3/Armory | Accompanied by 5 allies 26799 | -3/Armory | Found Prototype Launcher 26800 | -3/Armory | Identified Tactical Quantum Warhead 26865 | -3/Armory | Found Adv. Force Booster 27056 | -3/Armory | Build established: Hacker-Gunner 27130 | -3/Armory | Lost 4 allies 27216 | -3/Armory | Lost 3 parts (1p2u) 27243 | -3/Armory | Identified Transdimensional Reconstructor 27243 | -3/Armory | Warped through subspace to slip node 27243 | -3/Armory | Discovered new exit (range 1) 27244 | -3/Armory | Entered Lab 27244 | -3/Lab | Discovered new exit (range 9) 27248 | -3/Lab | Identified exit to Research 27250 | -3/Lab | Unable to decrypt terminal 27250 | -3/Lab | Opened the door to a hidden lab 27251 | -3/Lab | Gained access to the hidden lab's interior 27251 | -3/Lab | Detected by scanners 27254 | -3/Lab | Found Alien Artifact 27254 | -3/Lab | Identified Core Reset Matrix 27254 | -3/Lab | Used Core Reset Matrix 27258 | -3/Lab | Sensed 3 artifacts in vicinity 27261 | -3/Lab | Confronted by A5 27308 | -3/Lab | Destroyed A5 27326 | -3/Lab | Found Prototype Hackware 27327 | -3/Lab | Found Prototype Hackware 27333 | -3/Lab | Identified Exp. Hacking Suite 27339 | -3/Lab | Found Transdimensional Reconstructor 27345 | -3/Lab | Found Integrated Reactor 27345 | -3/Lab | Installed Integrated Reactor, increased core energy generation (+10) 27352 | -3/Lab | Identified Exp. System Shield 27353 | -3/Lab | Found Core Regenerator 27362 | -3/Lab | Found Prototype Energy Gun 27362 | -3/Lab | Identified Hyp. EM Gauss Rifle 27365 | -3/Lab | Found Prototype Protection 27365 | -3/Lab | Identified Med. Regenerative Plating 27368 | -3/Lab | Found Prototype Hackware 27368 | -3/Lab | Identified Deep Network Scanner 27373 | -3/Lab | Found Prototype Energy Cannon 27373 | -3/Lab | Identified Warp Cannon 27379 | -3/Lab | Unable to decrypt terminal 27390 | -3/Lab | Unable to decrypt terminal 27402 | -3/Lab | Found Prototype Special Weapon 27402 | -3/Lab | Identified Gui. Remote Datajack 27420 | -3/Lab | Discovered exit to Research (range 7) 27435 | -3/Lab | Entered Research 27435 | -2/Research | Evolved 2 slots: Propulsion x1, Utility x1 27495 | -2/Research | Identified exit to Access 27529 | -2/Research | Scrapoid reinforcements arrived 27600 | -2/Research | Build established: Wizard-Mutant 27625 | -2/Research | Lost 3 allies 27760 | -2/Research | System corruption reached 10% 27960 | -2/Research | Warped through subspace 27988 | -2/Research | Lost 6 parts (1p1n4w) 28029 | -2/Research | Exp. Hacking Suite fried by hacking feedback 28173 | -2/Research | Intercept squad dispatched 28188 | -2/Research | Central database locked down 28196 | -2/Research | Spotted Tracker 28199 | -2/Research | Spotted Tracker 28212 | -2/Research | Destroyed Tracker 28221 | -2/Research | Spotted Combat Programmer 28249 | -2/Research | Core integrity fell below 50% 28251 | -2/Research | Spotted Combat Programmer 28253 | -2/Research | Emitted hypermatrix ping 28258 | -2/Research | Assembled emerged from beneath the floor 28264 | -2/Research | Used Core Regenerator, restored core integrity (+362) 28277 | -2/Research | System corruption reached 30% 28281 | -2/Research | Destroyed Tracker 28287 | -2/Research | Core integrity fell below 20% 28303 | -2/Research | Lost 6 allies 28309 | -2/Research | Assembled emerged from beneath the floor 28317 | -2/Research | Cargo convoy interrupted 28330 | -2/Research | Lost 26 parts (2p6n8u10w) 28352 | -2/Research | Destroyed by Combat Programmer with EMDS Last Messages --------------- 28320_ as-46188 destroyed. 28321_ W-44 Eye destroyed. 28321_ as-86728 suffers critical hit (Destroy). 28323_ System corrupted: Heat flow error (+202). 28323_ K-01 Serf collects debris. 28324_ as-86728 destroyed. 28336_ EMDS Slug penetrates Wall. 28338_ Identified Lrn. Sensor Array. 28343_ U=R20>ZIQQTEVD XAY2C8INZSZTI69JQ 28343_ Penetrated by EMDS Slug. 28345_ Imp. Antigrav System destroyed. 28345_ Slammed into Combat Programmer. 28347_ Penetrated by EMDS Slug. 28347_ Imp. Antigrav System destroyed. 28347_ Slammed into Combat Programmer. 28349_ Lrn. Sensor Array destroyed. 28351_ Slammed into Combat Programmer. 28352_ Penetrated by EMDS Slug. 28352_ Hyb. Antimatter Reactor destroyed. 28352_ Exp. Signal Interpreter destroyed. Map ----- +----------------------------------------------------+ | ?# #?????????## # """" # # " == | | ?###?????????## " # # ? =] | | ?????????????## # # !# ???? | | ?????????????######################% %# ??????? ? | | ?????????????######## % # ????????? | | ???????????????????## = # ????????? | | ???????????????????## ! # ????????? | | ???????????????????## ! ##????????? | | ???????????????????## ##""""%!"""""###????????? | | ??